bitfinex/quotes_ETHUSD_20250123
["timestamp","ask_amount","ask_price","bid_price","bid_amount"]
[1737665448876,3.03609,3293.7,3291.7,0.7812]
[1737665449079,3.03757,3292.1,3291.7,0.7812]
[1737665449392,3.03775,3291.9,3291.8,0.04058316]
[1737665449590,3.03785,3291.8,3290.8,63.0]
[1737665449762,3.0,3292.2,3290.8,66.10202562]
[1737665449969,3.03822,3291.4,3290.9,0.04051438]
[1737665450164,3.03859,3291.0,3290.9,0.04051438]
[1737665450365,3.03845,3291.2,3290.9,0.04051438]
[1737665450569,3.03756,3292.2,3290.9,0.04051438]
[1737665450780,3.03486,3295.1,3294.8,22.6105935]
[1737665450969,3.03802,3291.7,3291.3,1.0698]
[1737665451267,3.03785,3291.9,3291.8,0.5]
[1737665451466,3.03785,3291.9,3291.5,0.25]
[1737665451467,3.03793,3291.8,3291.5,0.25]
[1737665451667,3.03797,3291.7,3291.5,0.25]
[1737665452294,3.03763,3292.1,3291.5,0.25]
[1737665452465,3.03722,3292.5,3291.9,0.75]
[1737665452670,3.03794,3291.7,3291.3,1.0698]
[1737665452880,6.07596,3291.7,3291.5,0.5]
[1737665453079,3.03822,3291.4,3291.3,0.8198]
[1737665453267,3.03766,3292.0,3291.5,0.5]
[1737665453474,3.03803,3291.6,3291.5,0.5]
[1737665453686,0.303683,3292.8,3290.8,1.5615]
[1737665453853,0.303683,3292.8,3290.3,3.93065602]
[1737665453854,3.03897,3290.6,3290.3,0.25]
[1737665454059,2.82529241,3290.6,3290.4,0.5]
[1737665454273,3.03877,3290.8,3290.6,0.75]
[1737665454595,3.0388,3290.8,3290.6,0.5]
[1737665454794,3.03822,3291.4,3290.2,0.5]
[1737665455008,3.03923,3290.3,3290.2,0.5]
[1737665455210,2.70681422,3290.3,3290.2,0.5]
[1737665455507,2.70681422,3290.3,3290.1,1.0615]
[1737665455683,3.03921,3290.4,3290.3,0.5]
[1737665455886,3.0,3292.4,3290.5,0.25]
[1737665456071,3.03827,3291.4,3290.5,0.25]
[1737665456277,3.0389,3290.7,3290.3,0.5]
[1737665456502,3.03906,3290.5,3290.3,0.5]
[1737665456700,3.03866,3291.0,3290.4,0.25]
[1737665456874,3.03776,3291.9,3290.7,0.25]
[1737665457070,3.03776,3291.9,3290.5,0.55]
[1737665457071,3.03846,3291.2,3290.9,0.25]
[1737665457307,3.03846,3291.2,3290.5,0.55]
[1737665457308,3.03814,3291.5,3291.2,0.5]
[1737665457497,3.0,3292.5,3291.0,0.54114504]
[1737665457699,3.03913,3290.5,3290.3,0.25]
[1737665458000,3.03912,3290.5,3290.3,0.25]
[1737665458202,3.03887,3290.7,3290.6,0.5]
[1737665458378,3.03824,3291.4,3291.2,0.5]
[1737665458577,3.03831,3291.3,3291.2,0.5]
[1737665458796,3.03739,3292.3,3290.7,0.25]
[1737665459079,3.03859,3291.0,3290.9,0.5]
[1737665459274,3.03859,3291.0,3290.7,0.25]
[1737665459487,3.03864,3291.0,3290.7,0.25]
[1737665459688,3.03775,3291.9,3290.6,0.5]
[1737665459875,3.03775,3291.9,3290.9,0.75]
[1737665460080,3.03803,3291.6,3291.5,0.5]
[1737665460278,3.03728,3292.5,3292.2,0.5]
[1737665460476,3.03706,3292.7,3292.6,0.5]
[1737665460715,3.03719,3292.6,3292.4,0.25]
[1737665460917,3.03692,3292.9,3292.8,0.5]
[1737665461112,3.03602,3293.8,3292.4,0.25]
[1737665461113,3.0372,3292.5,3292.4,0.25]
[1737665461301,3.03729,3292.4,3292.3,0.8232]
[1737665461615,3.03729,3292.4,3292.2,0.5]
[1737665461616,0.303729,3292.4,3291.3,0.5]
[1737665461822,3.03832,3291.3,3291.0,0.25]
[1737665461980,3.03775,3292.0,3291.3,0.75]
[1737665462178,3.03775,3292.0,3290.9,3.93065602]
[1737665462179,3.036,3293.8,3291.7,0.75]
[1737665462392,3.036,3293.8,3292.0,0.25]
[1737665462393,3.03748,3292.2,3292.0,0.25]
[1737665462592,3.03721,3292.5,3292.3,0.25]
[1737665462797,3.03721,3292.5,3291.7,1.5284]
[1737665462798,3.03766,3292.0,3291.7,1.5284]
[1737665463010,3.03766,3292.0,3291.9,0.25]
[1737665463209,3.03766,3292.0,3291.4,3.93065602]
[1737665463210,3.03775,3291.9,3291.4,0.5]
[1737665463521,3.03895,3290.7,3290.5,0.5]
[1737665463817,3.03803,3291.6,3290.8,0.5]
[1737665463992,3.03895,3290.6,3290.4,0.7784]
[1737665464321,3.03822,3291.4,3290.0,0.24825148]
[1737665464530,0.607541,3291.9,3290.8,0.5]
[1737665464687,3.03796,3291.7,3291.5,0.24825148]
[1737665464882,3.03812,3291.5,3291.4,0.5]
[1737665465087,3.03837,3291.3,3291.2,0.5]
[1737665465283,3.03883,3290.8,3290.1,0.5]
[1737665465508,0.303837,3291.3,3290.4,0.5]
[1737665465710,3.03899,3290.6,3290.4,0.5]
[1737665466019,3.03868,3290.9,3290.4,0.5]
[1737665466249,0.62267142,3293.3,3291.7,0.24825148]
[1737665466423,3.93065602,3292.9,3290.5,0.24825148]
[1737665466720,3.03905,3290.5,3290.4,0.74825148]
[1737665466899,3.03883,3290.8,3290.7,0.24825148]
[1737665467088,3.0,3291.5,3290.6,0.24825148]
[1737665467284,3.03879,3290.8,3290.6,0.24825148]
[1737665467495,3.03886,3290.7,3290.6,0.24825148]
[1737665467690,3.03905,3290.5,3290.4,0.74825148]
[1737665467919,3.03891,3290.7,3290.6,0.24825148]
[1737665468703,3.03848,3291.2,3290.5,0.24825148]
[1737665468919,0.30432169,3294.3,3291.4,0.24825148]
[1737665468920,0.00174852,3293.7,3291.4,0.24825148]
[1737665469105,3.03886,3290.7,3290.6,0.24825148]
[1737665469305,3.03874,3290.9,3290.8,0.24825148]
[1737665469605,3.03849,3291.1,3291.0,0.74825148]
[1737665469920,3.03868,3290.9,3290.8,0.01719512]
[1737665470320,6.646397,3290.9,3290.8,5.12e-06]
[1737665471033,3.04034,3289.1,3288.8,0.5]
[1737665471236,3.55,3290.1,3288.9,0.04097528]
[1737665471399,3.04031,3289.2,3287.8,0.74825148]
[1737665471731,3.04145,3287.9,3287.8,0.24825148]
[1737665471934,3.04158,3287.8,3287.6,0.5]
[1737665472134,3.04164,3287.7,3287.6,0.5]
[1737665472295,3.04109,3288.3,3287.8,0.5]
[1737665472499,3.03932,3290.2,3288.5,0.24825148]
[1737665472723,3.0399,3289.6,3288.9,0.24825148]
[1737665472909,3.03953,3290.0,3289.6,0.24825148]
[1737665473110,3.03978,3289.8,3289.0,0.28778074]
[1737665473318,0.607717,3290.9,3289.7,0.03915706]
[1737665473524,3.03927,3290.3,3290.1,0.5]
[1737665473831,3.03901,3290.6,3289.5,0.5]
[1737665473971,3.03901,3290.6,3288.7,0.7752]
[1737665473972,3.04006,3289.4,3289.3,0.5]
[1737665474151,3.03971,3289.8,3288.8,0.74825148]
[1737665474362,3.0404,3289.1,3289.0,0.74825148]
[1737665474562,3.04005,3289.5,3289.4,0.74825148]
[1737665474873,3.03964,3289.9,3289.6,0.24825148]
[1737665475074,3.03971,3289.8,3289.6,0.24825148]
[1737665475275,3.03966,3289.9,3289.6,0.24825148]
[1737665475450,3.03953,3290.0,3289.8,0.24825148]
[1737665475639,3.03954,3290.0,3289.8,0.24825148]
[1737665476008,3.03933,3290.2,3289.8,0.24825148]
[1737665476145,3.03933,3290.2,3288.5,0.60431942]
[1737665476146,3.03754,3292.2,3290.6,0.24825148]
[1737665476339,3.0379,3291.8,3290.8,0.24825148]
[1737665476586,0.36604043,3292.1,3291.1,0.24825148]
[1737665476759,3.03831,3291.3,3290.9,0.24825148]
[1737665477064,3.03859,3291.0,3290.9,0.24825148]
[1737665477251,5.0539887,3293.3,3291.1,0.24825148]
[1737665477476,3.03656,3293.2,3291.5,0.24825148]
[1737665477678,3.03767,3292.0,3290.7,0.24825148]
[1737665477981,3.03942,3290.1,3289.9,0.5]
[1737665478149,3.03969,3289.8,3289.6,0.5]
[1737665478351,3.03972,3289.8,3288.7,1.54385148]
[1737665478551,3.04089,3288.6,3288.3,0.5]
[1737665478753,3.04082,3288.6,3288.3,0.24825148]
[1737665478957,3.04108,3288.3,3288.2,0.24825148]
[1737665479153,3.04096,3288.5,3288.4,0.5]
[1737665479382,3.04108,3288.3,3288.2,0.24825148]
[1737665479541,3.04127,3288.1,3288.0,0.5]
[1737665479741,3.04127,3288.1,3287.4,0.24825148]
[1737665479742,3.04182,3287.5,3287.4,0.24825148]
[1737665479941,3.04238,3286.9,3286.8,0.5]
[1737665480146,3.04247,3286.8,3286.7,2.97715178]
[1737665480569,6.04247,3286.8,3286.7,1.78e-06]
[1737665480966,6.59247,3286.8,3286.7,1.78e-06]
[1737665481171,7.310183,3286.8,3286.7,1.78e-06]
[1737665481602,7.860183,3286.8,3286.7,1.78e-06]
[1737665482002,3.04404,3285.1,3284.8,0.5]
[1737665482220,3.04423,3284.9,3284.8,0.5]
[1737665482425,3.04432,3284.8,3284.7,0.5]
[1737665482635,3.04441,3284.7,3284.6,1.20490607]
[1737665482847,3.04441,3284.7,3283.2,1.37111577]
[1737665482848,3.04543,3283.6,3283.2,1.37111577]
[1737665482969,3.0459,3283.1,3283.0,0.24825148]
[1737665483321,3.04571,3283.3,3283.2,0.5]
[1737665483527,3.04571,3283.3,3282.7,0.24825148]
[1737665483727,3.0,3284.5,3282.7,0.24825148]
[1737665484007,0.00174852,3284.7,3281.7,3.84208]
[1737665484008,3.04636,3282.7,3282.2,0.74825148]
[1737665484166,3.0,3283.5,3282.2,0.5]
[1737665484368,3.04613,3282.9,3282.8,0.5]
[1737665484567,3.04585,3283.2,3282.8,0.5]
[1737665484971,3.04543,3283.6,3282.8,0.5]
[1737665485280,3.04616,3282.9,3282.8,0.5]
[1737665485634,3.0459,3283.1,3283.0,0.74825148]
[1737665485914,3.0459,3283.1,3283.0,0.04397438]
[1737665486284,3.04645,3282.5,3282.4,0.5]
[1737665487005,3.0471,3281.8,3281.7,0.24825148]
[1737665487186,0.00174852,3283.5,3281.7,0.24825148]
[1737665487187,3.04678,3282.2,3281.7,0.24825148]
[1737665487398,3.0471,3281.8,3281.7,0.04725214]
[1737665487694,4.90057342,3283.0,3281.1,0.41692628]
[1737665487893,3.04722,3281.7,3281.5,0.5]
[1737665488069,6.04666,3282.3,3281.6,0.24825148]
[1737665488270,4.8988249,3284.2,3282.0,0.5]
[1737665488494,3.04515,3283.9,3282.5,0.5]
[1737665488694,3.04596,3283.1,3282.5,0.5]
[1737665488932,3.0,3283.1,3282.6,0.04674079]
[1737665489099,3.04609,3282.9,3282.6,0.04674079]
[1737665489410,3.04673,3282.2,3282.1,0.5]
[1737665489573,3.04718,3281.8,3281.6,0.24825148]
[1737665489772,0.604609,3282.9,3281.7,0.24825148]
[1737665490129,3.04587,3283.2,3281.3,0.5]
[1737665490130,3.04713,3281.8,3281.3,0.5]
[1737665490429,3.04634,3282.7,3282.1,0.5]
[1737665490588,3.04634,3282.7,3282.2,0.24825148]
[1737665490908,3.04599,3283.1,3282.7,0.5]
[1737665491130,3.04636,3282.6,3282.3,0.5]
[1737665491276,0.55,3282.4,3281.2,0.24825148]
[1737665491475,3.04766,3281.2,3280.7,0.5]
[1737665491693,3.59766,3281.2,3281.1,4.8e-06]
[1737665491980,6.59766,3281.2,3281.1,4.8e-06]
[1737665492217,6.59766,3281.2,3279.5,0.62037521]
[1737665492218,3.04729,3281.7,3280.1,0.5]
[1737665492375,3.04887,3279.9,3279.8,0.5]
[1737665492771,3.0487,3280.1,3280.0,0.5]
[1737665493011,3.04865,3280.2,3280.0,0.5]
[1737665493217,0.55,3280.0,3279.8,0.5]
[1737665493521,0.55,3280.0,3277.9,4.8988249]
[1737665493522,0.55,3280.4,3278.3,3.0503]
[1737665493847,0.00174852,3281.2,3279.8,0.5]
[1737665493848,0.359831,3280.3,3279.8,0.5]
[1737665493999,4.8988249,3281.3,3277.8,1.2898424]
[1737665494000,4.8988249,3281.3,3279.7,0.5]
[1737665494177,3.04823,3280.6,3279.9,0.5]
[1737665494382,3.04766,3281.3,3279.9,0.5]
[1737665494618,3.04829,3280.6,3279.9,0.5]
[1737665494836,3.04748,3281.4,3279.8,0.24825148]
[1737665494987,3.04888,3279.9,3279.7,0.24825148]
[1737665495186,3.04872,3280.1,3279.7,0.5]
[1737665495493,3.04861,3280.2,3279.9,0.5]
[1737665495821,6.04878,3280.0,3279.9,0.5]
[1737665496020,6.04878,3280.0,3278.6,3.82797]
[1737665496021,3.0,3280.2,3279.8,0.5]
[1737665496209,3.04822,3280.6,3279.8,0.74825148]
[1737665496411,3.04805,3280.8,3280.3,0.5]
[1737665496622,3.35227385,3281.6,3280.3,0.5]
[1737665496623,0.30490385,3281.6,3280.5,0.24825148]
[1737665496937,3.04779,3281.1,3280.7,0.24825148]
[1737665497238,3.04655,3282.4,3281.0,0.24825148]
[1737665497398,0.91495404,3282.5,3281.0,0.24825148]
[1737665497399,3.04747,3281.5,3281.0,0.24825148]
[1737665497594,3.04758,3281.3,3281.0,0.74825148]
[1737665497794,3.04747,3281.5,3281.0,0.74825148]
[1737665498047,3.0,3280.3,3280.2,0.24825148]
[1737665498215,3.0482,3280.7,3280.2,0.5]
[1737665498401,3.0482,3280.7,3280.5,0.24825148]
[1737665498402,3.0,3280.6,3280.5,0.24825148]
[1737665498909,3.0,3280.3,3280.2,0.74825148]
[1737665499128,3.04853,3280.3,3280.2,0.55019031]
[1737665499330,6.04853,3280.3,3280.2,0.05019031]
[1737665499768,3.04786,3281.0,3279.3,0.24825148]
[1737665499769,3.04933,3279.5,3279.3,0.74825148]
[1737665500062,3.04961,3279.1,3279.0,0.5]
[1737665500276,3.04896,3279.8,3278.8,0.5]
[1737665500277,3.0,3279.7,3278.8,0.5]
[1737665500459,3.0,3279.7,3278.6,0.24825148]
[1737665500460,3.0498,3278.9,3278.6,0.5]
[1737665500682,3.0,3279.3,3278.9,0.5]
[1737665500857,3.05026,3278.4,3278.3,0.24825148]
[1737665501019,3.05026,3278.4,3277.8,0.1686748]
[1737665501020,3.05036,3278.3,3277.8,0.1686748]
[1737665501375,3.0,3277.9,3277.8,0.6686748]
[1737665501557,3.04998,3278.8,3277.9,0.5]
[1737665501863,3.04989,3278.8,3278.2,0.24825148]
[1737665502025,3.40738894,3279.7,3278.3,0.24825148]
[1737665502374,3.04961,3279.2,3278.5,0.24825148]
[1737665502677,3.04961,3279.2,3277.8,0.1686748]
[1737665502678,3.05073,3277.9,3277.8,0.1686748]
[1737665502820,3.0,3278.8,3277.9,0.5]
[1737665503022,0.304961,3279.2,3278.7,0.24825148]
[1737665503330,3.04879,3280.0,3279.4,0.5]
[1737665503531,3.04879,3280.0,3279.5,0.24825148]
[1737665503778,0.60009819,3280.9,3279.5,0.24825148]
[1737665503921,0.00174852,3280.6,3278.6,0.24825148]
[1737665504167,3.05045,3278.2,3277.8,0.1686748]
[1737665504479,0.47038564,3277.8,3275.4,4.93503374]
[1737665504680,0.47038564,3276.5,3274.8,4.93503374]
[1737665504874,3.52261564,3276.3,3274.8,7.98857374]
[1737665505069,0.47038564,3276.3,3274.8,4.93503374]
[1737665505490,3.0,3276.6,3275.6,3.05285]
[1737665505737,3.47038564,3277.0,3275.6,0.610579]
[1737665505882,3.47038564,3277.0,3274.8,7.98856374]
[1737665505883,0.47038564,3276.7,3275.9,3.05254]
[1737665506083,0.47038564,3276.8,3275.9,0.55]
[1737665506314,0.47038564,3276.8,3275.8,3.05267]
[1737665506518,0.47038564,3277.0,3275.7,3.05268]
[1737665506687,0.47038564,3276.7,3276.0,3.05249]
[1737665507035,0.47038564,3277.0,3275.5,6.05295]
[1737665507238,3.05251,3276.0,3274.2,4.93503374]
[1737665507387,3.05274,3275.8,3274.3,3.05406]
[1737665507587,0.47038564,3275.9,3274.5,0.9985748]
[1737665507793,0.47038564,3275.7,3274.5,0.9985748]
[1737665507999,0.47038564,3275.9,3274.8,3.05358]
[1737665508331,0.47038564,3275.7,3274.5,4.0524248]
[1737665508535,0.47038564,3275.7,3274.6,3.0538]
[1737665508833,0.47038564,3275.7,3274.7,3.05368]
[1737665508993,0.47038564,3276.3,3274.7,3.0]
[1737665509197,0.47038564,3276.3,3275.2,3.05322]
[1737665509412,0.47038564,3276.5,3275.5,0.8299]
[1737665509629,0.47038564,3276.7,3275.6,0.55]
[1737665509833,0.47038564,3276.7,3275.5,3.88284]
[1737665510134,0.47038564,3276.3,3275.5,0.8299]
[1737665510331,0.47038564,3276.0,3274.9,0.8299]
[1737665510631,0.47038564,3275.8,3274.9,0.8299]
[1737665510835,0.7934,3277.2,3274.9,0.8299]
[1737665510836,0.47038564,3276.0,3275.3,3.05315]
[1737665510990,3.47038564,3276.5,3275.4,0.55]
[1737665511191,0.47038564,3276.0,3274.9,0.8299]
[1737665511404,1.26378564,3276.1,3274.9,0.8299]
[1737665511604,0.47038564,3276.5,3274.9,0.8299]
[1737665511809,0.47038564,3276.5,3275.5,3.05295]
[1737665512032,0.47038564,3276.5,3275.6,0.55]
[1737665512206,0.47038564,3276.5,3275.6,0.5976834]
[1737665512406,0.47038564,3276.5,3275.6,0.0476834]
[1737665512734,0.47038564,3276.2,3275.1,0.55]
[1737665512938,0.47038564,3276.2,3275.7,0.04762636]
[1737665513234,0.47038564,3276.5,3275.5,0.55]
[1737665513452,0.47038564,3275.9,3275.8,0.04756932]
[1737665513592,0.47038564,3276.2,3275.2,3.05323]
[1737665513791,0.47038564,3276.4,3275.6,3.05285]
[1737665514029,0.47038564,3276.4,3274.9,0.8299]
[1737665514030,0.47038564,3276.5,3275.7,0.55]
[1737665514232,0.47038564,3276.7,3275.7,0.5974784]
[1737665514462,0.47038564,3277.2,3276.8,0.55]
[1737665514741,0.99309157,3278.2,3277.7,3.05088]
[1737665514911,0.47038564,3278.1,3277.2,0.8105]
[1737665515236,0.99309157,3278.2,3278.1,3.05054]
[1737665515535,3.04867,3280.2,3279.2,3.04943]
[1737665515536,1.23738564,3280.2,3279.2,3.04943]
[1737665515830,0.47038564,3280.0,3279.2,0.8243]
[1737665516031,0.47038564,3279.8,3279.3,0.04524589]
[1737665516247,0.47038564,3279.6,3279.3,0.04524589]
[1737665516410,0.47038564,3280.3,3278.6,0.8068]
[1737665516733,0.47038564,3280.3,3279.5,0.55]
[1737665517041,3.51896564,3280.3,3278.9,3.04973]
[1737665517331,3.51896564,3280.3,3278.7,0.4258395]
[1737665517332,0.47038564,3280.3,3279.2,0.55]
[1737665517531,0.47038564,3279.7,3279.3,0.55]
[1737665517695,0.47038564,3279.7,3279.3,0.04464382]
[1737665517901,0.47038564,3279.1,3278.1,0.7579]
[1737665518097,3.05018,3278.5,3277.2,3.80928]
[1737665518431,3.47038564,3278.6,3277.6,3.05096]
[1737665518636,0.47038564,3278.8,3278.0,3.05057]
[1737665518821,0.47038564,3278.7,3278.0,3.05057]
[1737665519076,0.47038564,3278.7,3278.2,0.55]
[1737665519197,0.47038564,3278.9,3278.2,0.55]
[1737665519396,0.47038564,3278.7,3278.3,0.04293271]
[1737665519597,0.47038564,3278.3,3278.2,0.01513837]
[1737665520007,3.52074564,3278.3,3278.2,0.01513837]
[1737665520203,4.1224602,3278.3,3278.2,0.01513837]
[1737665520640,0.47038564,3278.6,3278.2,0.01513837]
[1737665521216,0.47038564,3278.6,3278.3,0.04327375]
[1737665521665,0.47038564,3279.4,3278.2,3.06557837]
[1737665521861,0.47038564,3279.6,3279.0,3.0497]
[1737665522005,0.47038564,3279.6,3279.2,0.55]
[1737665522358,4.93503374,3281.9,3279.4,3.04932]
[1737665522359,0.47038564,3280.2,3279.4,3.04932]
[1737665522537,0.47038564,3280.2,3279.3,0.04270442]
[1737665522538,0.47038564,3279.8,3279.5,0.55]
[1737665522741,0.47038564,3279.8,3279.5,0.04251942]
[1737665522950,6.51953564,3279.6,3279.5,0.04251942]
[1737665523145,0.47038564,3278.3,3277.5,3.8682]
[1737665523524,0.47038564,3278.3,3278.2,0.0569809]
[1737665523720,4.33254564,3278.3,3278.2,0.01513837]
[1737665523908,1.28218564,3278.3,3278.2,0.00512342]
[1737665524142,0.47038564,3276.9,3276.0,0.8171]
[1737665524540,3.05176,3276.8,3276.1,0.04294927]
[1737665524863,0.47038564,3276.4,3276.1,0.04294927]
[1737665525072,0.47038564,3276.2,3276.1,0.04294927]
[1737665525210,0.47038564,3276.2,3275.5,0.8276]
[1737665525421,3.52297564,3275.9,3275.0,0.8314]
[1737665525722,0.47038564,3275.3,3274.5,0.1686748]
[1737665526409,1.099339,3276.1,3274.5,0.1686748]
[1737665526410,0.47038564,3274.7,3274.5,0.1686748]
[1737665526623,3.52410564,3274.7,3274.5,0.1686748]
[1737665526819,0.47038564,3274.7,3274.5,0.1686748]
[1737665527020,0.47038564,3275.3,3274.5,0.1686748]
[1737665527216,0.47038564,3275.6,3274.5,0.49094828]
[1737665527476,0.47038564,3275.1,3274.5,0.1686748]
[1737665527677,0.47038564,3276.0,3275.0,3.05338]
[1737665527822,3.30085,3277.8,3274.6,0.7741]
[1737665527823,0.47038564,3275.8,3275.2,3.05322]
[1737665528024,0.47038564,3275.8,3275.0,0.55]
[1737665528234,0.47038564,3275.5,3274.6,0.7741]
[1737665528674,0.47038564,3276.0,3274.7,3.05371]
[1737665528824,0.47038564,3276.4,3275.5,3.05287]
[1737665529025,0.47038564,3276.2,3275.5,3.05291]
[1737665529338,0.47038564,3276.3,3275.5,3.05289]
[1737665529539,0.47038564,3276.3,3275.3,3.05315]
[1737665529739,0.47038564,3276.3,3274.9,3.96386792]
[1737665529740,0.47038564,3276.0,3274.8,0.382781]
[1737665529925,0.47038564,3275.7,3274.6,3.82784]
[1737665530449,0.47038564,3275.7,3274.7,0.55]
[1737665530622,0.47038564,3275.7,3274.8,3.05361]
[1737665530820,0.47038564,3275.7,3274.9,3.05351]
[1737665531024,0.47038564,3275.7,3274.8,0.04473202]
[1737665531326,0.47038564,3275.7,3274.9,0.04467495]
[1737665531527,0.47038564,3275.4,3274.7,0.55]
[1737665531722,3.0,3275.8,3275.0,0.04461788]
[1737665531723,0.47038564,3275.1,3275.0,0.04461788]
[1737665531954,3.52418564,3274.6,3274.5,0.1686748]
[1737665532135,7.1819712,3274.6,3274.5,0.1686748]
[1737665532974,3.47038564,3274.6,3274.5,0.1686748]
[1737665533143,0.47038564,3274.6,3274.5,0.1686748]
[1737665533651,6.52418564,3274.6,3274.5,0.1686748]
[1737665534466,3.47038564,3274.6,3274.5,0.1686748]
[1737665534665,0.47038564,3274.6,3274.5,0.1686748]
[1737665535169,0.47038564,3274.8,3274.5,0.1686748]
[1737665535472,0.47038564,3275.4,3274.6,0.55]
[1737665535770,0.47038564,3275.3,3274.6,3.05375]
[1737665536070,0.25,3277.2,3274.5,0.1686748]
[1737665536071,0.47038564,3275.8,3275.0,0.55]
[1737665536366,0.47038564,3275.8,3274.7,0.32224248]
[1737665536569,0.47038564,3275.7,3274.7,0.32224248]
[1737665536729,3.52316564,3275.8,3274.5,0.1686748]
[1737665536929,0.47038564,3275.3,3274.5,0.1686748]
[1737665537129,3.47038564,3274.6,3274.5,0.1686748]
[1737665537362,3.52418564,3274.6,3274.5,0.1686748]
[1737665537562,6.52418564,3274.6,3274.5,0.1686748]
[1737665537766,7.69186286,3274.6,3274.5,0.1686748]
[1737665538156,8.46746286,3274.6,3274.5,0.1686748]
[1737665538885,7.29978564,3274.6,3274.5,0.1686748]
[1737665539569,7.29978564,3274.6,3274.5,4.8e-06]
[1737665540285,3.52418564,3274.6,3274.5,4.8e-06]
[1737665541154,4.89798564,3274.6,3274.5,4.8e-06]
[1737665541358,4.07418564,3274.6,3269.0,8.73]
[1737665541543,4.07418564,3274.6,3269.8,1.223163]
[1737665541544,3.05688,3271.3,3269.8,1.223163]
[1737665541747,3.05688,3271.3,3270.2,3.05782]
[1737665541980,3.05688,3271.3,3269.7,0.8153]
[1737665542144,3.05688,3271.3,3269.8,3.05821]
[1737665542349,0.47038564,3271.4,3270.1,3.058]
[1737665542569,0.47038564,3271.4,3270.2,3.0]
[1737665542742,3.05688,3271.3,3269.7,0.8153]
[1737665542949,6.05688,3271.3,3269.7,0.8153]
[1737665543499,6.05688,3271.3,3269.7,3.87367]
[1737665543707,6.05688,3271.3,3269.7,0.8153]
[1737665544049,6.05688,3271.3,3271.2,4.8e-06]
[1737665544281,7.01528156,3271.3,3271.2,4.8e-06]
[1737665544803,3.05688,3271.3,3271.2,4.8e-06]
[1737665545997,0.47038564,3269.4,3268.5,2.9620623]
[1737665546207,3.52861564,3269.9,3268.5,2.9620623]
[1737665546369,0.47038564,3269.3,3268.6,0.04815338]
[1737665546566,3.05898,3269.1,3268.5,2.9620623]
[1737665546900,0.47038564,3269.2,3268.5,2.9620623]
[1737665547204,0.47038564,3269.0,3268.5,2.9620623]
[1737665547489,0.7805,3269.6,3268.5,2.9620623]
[1737665547490,0.47038564,3268.6,3268.5,2.9833913]
[1737665547689,3.52979564,3268.6,3268.5,2.9833913]
[1737665547848,6.52979564,3268.6,3268.5,2.9833913]
[1737665548046,3.52979564,3268.6,3268.5,2.9833913]
[1737665548250,1.25088564,3268.6,3268.5,2.9833913]
[1737665548572,3.89362897,3268.6,3268.5,2.9833913]
[1737665548776,3.89362897,3268.6,3268.5,0.021329]
[1737665548961,0.83421897,3268.6,3268.5,0.021329]
[1737665549159,0.47038564,3268.6,3268.5,0.021329]
[1737665549683,3.47038564,3268.6,3268.5,0.021329]
[1737665549993,0.47038564,3269.5,3268.5,0.021329]
[1737665550163,0.47038564,3269.3,3268.5,0.021329]
[1737665550361,0.47038564,3269.1,3268.5,0.021329]
[1737665550575,0.47038564,3269.8,3268.6,35.0]
[1737665550907,0.99538354,3270.4,3269.2,0.7898]
[1737665551114,0.47038564,3269.8,3269.2,0.7898]
[1737665551389,0.99538354,3270.4,3269.2,0.7898]
[1737665551390,0.47038564,3270.1,3269.2,0.7898]
[1737665551565,0.47038564,3269.7,3269.2,0.811129]
[1737665551761,0.99538354,3270.4,3269.4,3.05863]
[1737665551963,3.47038564,3269.4,3269.2,0.021329]
[1737665552191,6.60875,3269.3,3269.2,0.021329]
[1737665552489,4.5952112,3269.4,3267.4,0.169151]
[1737665552490,0.47038564,3268.3,3267.4,0.169151]
[1737665552689,0.47038564,3268.0,3267.5,3.06041]
[1737665552990,0.47038564,3267.6,3267.5,0.05070218]
[1737665553350,0.47038564,3267.6,3267.4,0.169151]
[1737665553550,0.47038564,3268.1,3267.4,0.169151]
[1737665553759,0.47038564,3267.6,3267.5,0.05070218]
[1737665553947,0.47038564,3267.6,3267.4,0.169151]
[1737665554175,3.47038564,3267.6,3267.4,0.169151]
[1737665554376,1.06627256,3267.5,3267.4,0.169151]
[1737665554590,12.14116952,3267.5,3267.4,0.169151]
[1737665554763,3.91378904,3267.5,3267.4,0.169151]
[1737665555090,7.37706792,3267.5,3267.4,0.169151]
[1737665555291,11.48809696,3267.5,3267.4,0.169151]
[1737665555489,10.98750792,3267.5,3267.4,1e-06]
[1737665555694,0.47038564,3266.2,3265.3,3.88405]
[1737665555992,3.06063,3267.3,3265.4,0.05436365]
[1737665555993,3.47038564,3266.3,3265.4,0.05436365]
[1737665556154,0.47038564,3266.5,3266.0,3.06178]
[1737665556350,0.47038564,3266.1,3264.8,0.8216]
[1737665556680,0.47038564,3266.1,3265.2,3.06254]
[1737665556989,0.47038564,3266.1,3265.2,3.06258]
[1737665557191,0.47038564,3266.1,3265.4,3.0624]
[1737665557492,0.47038564,3266.1,3262.2,5.17964543]
[1737665557493,3.06268,3265.2,3263.4,3.06423]
[1737665557691,0.47038564,3265.3,3264.3,3.86591]
[1737665557854,0.47038564,3265.3,3264.3,0.8025]
[1737665558054,0.47038564,3265.7,3264.6,3.06311]
[1737665558361,0.47038564,3265.4,3264.7,3.063]
[1737665558563,0.47038564,3265.4,3264.7,3.06301]
[1737665558750,3.53318564,3265.0,3264.1,3.232761]
[1737665558954,6.53270564,3265.5,3264.5,3.06322]
[1737665559265,0.47038564,3265.0,3264.1,0.169151]
[1737665559709,3.53363564,3264.5,3264.1,0.169151]
[1737665560018,6.8869992,3264.5,3264.4,6.61e-06]
[1737665560150,7.08391564,3264.2,3264.1,7.61e-06]
[1737665560489,6.53391564,3264.2,3264.1,7.61e-06]
[1737665560875,7.08391564,3264.2,3264.1,7.61e-06]
[1737665561090,7.08391564,3264.2,3262.9,1.29e-06]
[1737665561091,4.49824564,3263.0,3262.9,1.29e-06]